[Event "Elegant Academy GM Aspirant-II"]
[Site "Dhaka"]
[Date "2024.02.21"]
[Round "1.1"]
[White "Liyanage, Ranindu Dilshan"]
[Black "Aradhya, Garg"]
[Result "1/2-1/2"]
[ECO "D14"]
[WhiteElo "2366"]
[BlackElo "2390"]
[Annotator "TA"]
[PlyCount "80"]
[EventDate "2024.02.21"]
[EventType "tourn"]
[EventCountry "BAN"]
[SourceTitle "playchess.com"]
[Source "ChessBase"]
[SourceQuality "1"]
[TimeControl "5400+30"]

{[%evp 19,80,24,14,21,43,-31,-29,-17,-24,-26,-27,-33,-26,-60,-50,-46,-50,-58,-48,-43,-49,-52,-58,-73,-73,-73,-73,-73,-73,-73,-73,-73,-73,-73,-73,-73,-73,-73,-73,-73,-73,-73,-83,-75,-76,-90,-87,-82,-78,-83,-75,-87,0,-83,-60,-76,0,0,0,0,0,-74,0]} 1. d4 {[%emt 0:00:06]} d5 {[%emt 0:00:04]} 2. c4 {[%emt 0:00:13]} c6 {[%emt 0:00:04]} 3. cxd5 {[%emt 0:00:23]} cxd5 {[%emt 0:00:08]} 4. Nc3 {[%emt 0:00:05]} Nf6 {[%emt 0:02:18]} 5. Bf4 {[%emt 0:00:22]} Nc6 {[%emt 0:00:07]} 6. e3 {[%emt 0:00:06]} Bf5 {[%emt 0:11:39]} 7. Qb3 {[%emt 0:00:33]} Qb6 {[%emt 0:00:18]} 8. Qxb6 {[%emt 0:02:29]} axb6 {[%emt 0:03:17]} 9. Bb5 {[%emt 0:00:16]} e6 {[%emt 0:00:11]} 10. Nf3 {[%emt 0:03:53]} Bb4 {[%emt 0:04:20]} 11. Ne5 {[%emt 0:04:19]} O-O {[%emt 0:07:07]} 12. Nxc6 {[%emt 0:15:53]} (12. Bxc6 $14 Bxc3+ 13. bxc3 bxc6 14. Nxc6) 12... bxc6 $15 {[%emt 0:00:47]} 13. Bxc6 {[%emt 0:00:05] Black has an edge.} Ra5 {[%emt 0:05:34] [#] Strongly threatening ...Rc8.} 14. a4 {[%emt 0:11:32]} Rc8 {[%emt 0:28:31]} 15. Bb5 {[%emt 0:06:32]} Ne4 {[%emt 0:03:26]} 16. O-O {[%emt 0:01:49] Nxe4 is the strong threat.} Bxc3 {[%emt 0:00:38]} 17. bxc3 {[%emt 0:11:09]} Nxc3 {[%emt 0:03:05]} 18. Rfc1 {[%emt 0:16:06]} Rxb5 $1 {[%emt 0:02:28]} 19. Rxc3 {[%emt 0:00:06]} (19. axb5 $2 {perishes.} Ne2+ 20. Kh1 Rxc1+ $19 (20... Nxc1 $2 21. h4 $19)) 19... Rxc3 {[%emt 0:00:06]} 20. axb5 {[%emt 0:00:06][%mdl 4096] [#] Endgame. White threatens Ra8+ and mate. KRB-KRB} h5 $1 {[%emt 0:02:07]} 21. h4 {[%emt 0:00:09] aiming for Ra6.} Rb3 {[%emt 0:00:27]} 22. Ra8+ {[%emt 0:00:14]} Kh7 {[%emt 0:00:02]} 23. Ra7 {[%emt 0:00:30]} Kg6 {[%emt 0:01:22]} ({Much weaker is} 23... Rxb5 $6 24. Rxf7 Kg8 (24... Rb1+ 25. Kh2 $11) 25. Rb7 $14) 24. Rb7 {[%emt 0:00:07]} Rxb5 {[%emt 0:00:06]} 25. Kh2 {[%emt 0:00:49]} Rb2 {[%emt 0:00:48]} 26. Kg3 {[%emt 0:00:06]} b5 {[%emt 0:01:32]} 27. Bd6 {[%emt 0:00:07]} Bd3 {[%emt 0:01:33]} 28. Bc5 {[%emt 0:01:10]} Rb1 {[%emt 0:00:56]} 29. Bd6 {[%emt 0:01:32]} Be4 {[%emt 0:01:27]} 30. Bc5 {[%emt 0:05:30]} Rg1 {[%emt 0:01:33]} 31. f3 {[%emt 0:00:05]} Bd3 {[%emt 0:00:03]} 32. Bd6 {[%emt 0:01:19]} Re1 {[%emt 0:01:39]} 33. Kf4 {[%emt 0:01:26]} Rf1 {[%emt 0:00:55]} 34. Kg3 {[%emt 0:00:45] Against Rf2} Rc1 {[%emt 0:03:58]} 35. Kf4 {[%emt 0:02:00]} Rg1 {[%emt 0:06:24]} 36. Kg3 {[%emt 0:00:59]} Bc4 {[%emt 0:01:47]} 37. Bc5 {[%emt 0:02:07]} Kf6 {[%emt 0:03:40]} (37... Rb1 $17 {And now ...Rb2 would win.} 38. Kf4 Rg1) 38. Be7+ $11 {[%emt 0:00:49]} Kf5 {[%emt 0:00:19]} 39. Bd6 {[%emt 0:01:03]} Kg6 {[%emt 0:00:01]} (39... Kf6 $11) 40. Bc5 $1 $17 {[%emt 0:00:08]} Bd3 {[%emt 0:01:47] Weighted Error Value: White=0.07 (flawless) /Black=0.08 (flawless) .  Mistake:       	White=1     	Black=3      Inaccurate:     	White=1     	---        OK:         	White=10    	Black=11     Best:        	White=6     	Black=1      Strong:       	White=1     	Black=2} (40... Re1 $17 41. Kf4 Rg1 42. Kg3) 1/2-1/2

[Event "Elegant Academy GM Aspirant-II"]
[Site "Dhaka"]
[Date "2024.02.21"]
[Round "1.2"]
[White "Murshed, Niaz"]
[Black "Rahman, Ziaur"]
[Result "1/2-1/2"]
[ECO "B22"]
[WhiteElo "2363"]
[BlackElo "2428"]
[Annotator "RC"]
[PlyCount "73"]
[EventDate "2024.02.21"]
[EventType "tourn"]
[EventCountry "BAN"]
[SourceTitle "playchess.com"]
[Source "ChessBase"]
[SourceQuality "1"]
[TimeControl "5400+30"]

1. e4 {[%emt 0:00:04]} c5 {[%emt 0:01:56]} 2. c3 {[%emt 0:00:08]} e5 {[%emt 0:01:59]} 3. Nf3 {[%emt 0:01:16]} Nc6 {[%emt 0:01:03]} 4. Bc4 {[%emt 0:00:07]} Nf6 {[%emt 0:00:15]} 5. d3 {[%emt 0:10:18]} Be7 {[%emt 0:01:17]} 6. O-O {[%emt 0:00:39]} O-O {[%emt 0:00:08]} 7. Re1 {[%emt 0:00:29]} d6 {[%emt 0:00:55]} 8. a3 {[%emt 0:00:31]} a6 {[%emt 0:01:54]} 9. Nbd2 {[%emt 0:00:40]} h6 {[%emt 0:04:28]} 10. Nf1 {[%emt 0:00:40]} Re8 {[%emt 0:04:27]} 11. Ne3 {[%emt 0:05:22]} Bf8 {[%emt 0:01:16]} 12. b4 {[%emt 0:06:26]} Be6 {[%emt 0:06:32]} 13. Nd5 {[%emt 0:11:57]} cxb4 {[%emt 0:10:47]} 14. axb4 {[%emt 0:00:47]} Bxd5 {[%emt 0:00:32]} 15. Bxd5 {[%emt 0:04:37]} Nxd5 {[%emt 0:01:53]} 16. exd5 {[%emt 0:00:06]} Ne7 {[%emt 0:01:29]} 17. Qb3 {[%emt 0:01:12]} Ng6 {[%emt 0:06:03]} 18. c4 {[%emt 0:04:40]} Qf6 {[%emt 0:03:27]} 19. Be3 {[%emt 0:05:08]} Nf4 {[%emt 0:04:33]} 20. c5 {[%emt 0:01:57]} Rec8 {[%emt 0:10:35]} 21. Rac1 {[%emt 0:05:30]} a5 {[%emt 0:02:01]} 22. bxa5 {[%emt 0:17:07]} dxc5 {[%emt 0:00:07]} 23. Bxf4 {[%emt 0:05:29]} exf4 {[%emt 0:00:17]} 24. Ra1 {[%emt 0:04:34]} Re8 {[%emt 0:03:31]} 25. Qxb7 {[%emt 0:02:29]} Rxe1+ {[%emt 0:00:49]} 26. Rxe1 {[%emt 0:00:06]} Rxa5 {[%emt 0:00:13]} 27. h3 {[%emt 0:04:20]} Bd6 {[%emt 0:00:38]} 28. Qd7 {[%emt 0:01:39]} Kh7 {[%emt 0:08:16]} 29. Nd2 {[%emt 0:01:26]} Qg6 {[%emt 0:04:25]} 30. Ne4 {[%emt 0:01:14]} Be5 {[%emt 0:00:30]} 31. Qg4 {[%emt 0:01:05]} f5 {[%emt 0:03:35]} 32. Qxg6+ {[%emt 0:00:24]} Kxg6 {[%emt 0:00:02]} 33. Nd2 {[%emt 0:02:09]} Bf6 {[%emt 0:03:51]} 34. Nf3 {[%emt 0:00:44]} Ra3 {[%emt 0:00:53]} 35. Re6 {[%emt 0:01:36]} Kf7 {[%emt 0:00:30]} 36. Ne5+ {[%emt 0:00:37]} Bxe5 {[%emt 0:00:14]} 37. Rxe5 {[%emt 0:00:06]} 1/2-1/2

[Event "Elegant Academy GM Aspirant-II"]
[Site "Dhaka"]
[Date "2024.02.21"]
[Round "1.3"]
[White "Siddharth, Jagadeesh"]
[Black "Mohammad Fahad, Rahman"]
[Result "1-0"]
[ECO "D05"]
[WhiteElo "2457"]
[BlackElo "2418"]
[Annotator "RC"]
[PlyCount "53"]
[EventDate "2024.02.21"]
[EventType "tourn"]
[EventCountry "BAN"]
[SourceTitle "playchess.com"]
[Source "ChessBase"]
[SourceQuality "1"]
[TimeControl "5400+30"]

1. d4 {[%emt 0:00:22]} d5 {[%emt 0:00:30]} 2. Nf3 {[%emt 0:00:07]} Nf6 {[%emt 0:00:16]} 3. e3 {[%emt 0:00:13]} e6 {[%emt 0:01:25]} 4. Bd3 {[%emt 0:00:15]} c5 {[%emt 0:00:52]} 5. b3 {[%emt 0:00:17]} cxd4 {[%emt 0:05:10]} 6. exd4 {[%emt 0:00:09]} Bd6 {[%emt 0:00:28]} 7. O-O {[%emt 0:00:50]} O-O {[%emt 0:00:45]} 8. c4 {[%emt 0:07:06]} b6 {[%emt 0:04:03]} 9. Nc3 {[%emt 0:00:50]} dxc4 {[%emt 0:13:54]} 10. bxc4 {[%emt 0:00:08]} Bb7 {[%emt 0:00:11]} 11. Bg5 {[%emt 0:11:55]} Be7 {[%emt 0:07:09]} 12. Re1 {[%emt 0:00:35]} Nc6 {[%emt 0:04:00]} 13. Rc1 {[%emt 0:05:06]} Rc8 {[%emt 0:02:13]} 14. Bb1 {[%emt 0:12:14]} Re8 {[%emt 0:19:37]} 15. d5 {[%emt 0:19:11]} exd5 {[%emt 0:02:37]} 16. Bf5 {[%emt 0:04:00]} Ra8 {[%emt 0:05:01]} 17. Nxd5 {[%emt 0:01:54]} Nxd5 {[%emt 0:06:45]} 18. cxd5 {[%emt 0:00:24]} Bxg5 {[%emt 0:09:17]} 19. Rxe8+ {[%emt 0:03:35]} Qxe8 {[%emt 0:00:03]} 20. Nxg5 {[%emt 0:04:50]} Nb4 {[%emt 0:02:59]} 21. Bxh7+ {[%emt 0:01:06]} Kf8 {[%emt 0:00:01]} 22. Qh5 {[%emt 0:01:02]} Rc8 {[%emt 0:05:24]} 23. Rf1 {[%emt 0:02:06]} Rc5 {[%emt 0:04:04]} 24. Bg6 {[%emt 0:02:41]} Bxd5 {[%emt 0:01:44]} 25. Qh8+ {[%emt 0:00:07]} Ke7 {[%emt 0:00:05]} 26. Re1+ {[%emt 0:00:06]} Be6 {[%emt 0:00:05]} 27. Rxe6+ {[%emt 0:00:07]} 1-0

[Event "Elegant Academy GM Aspirant-II"]
[Site "Dhaka"]
[Date "2024.02.21"]
[Round "1.4"]
[White "Sriram, Jha"]
[Black "Mayank Chakraborty"]
[Result "1/2-1/2"]
[ECO "A07"]
[WhiteElo "2317"]
[BlackElo "2409"]
[Annotator "TA"]
[PlyCount "68"]
[EventDate "2024.02.21"]
[EventType "tourn"]
[EventCountry "BAN"]
[SourceTitle "playchess.com"]
[Source "ChessBase"]
[SourceQuality "1"]
[TimeControl "5400+30"]

{[%evp 9,68,8,23,15,20,13,22,9,25,24,41,10,7,15,3,0,16,-8,-1,3,12,15,12,-6,0,6,13,-43,-21,-41,-53,-58,0,-27,-32,-56,-41,-33,-18,-26,-19,-21,-18,-31,-44,-37,-33,-237,-227,-217,-231,-263,-252,-216,0,0,0,-23,61,0,0]} 1. Nf3 {[%emt 0:00:37]} d5 {[%emt 0:00:17]} 2. g3 {[%emt 0:00:27]} c6 {[%emt 0:00:27]} 3. Bg2 {[%emt 0:00:10]} Bg4 {[%emt 0:00:24]} 4. O-O {[%emt 0:01:24]} e6 {[%emt 0:00:27]} 5. h3 {[%emt 0:00:42]} Bh5 {[%emt 0:00:44]} 6. d4 {[%emt 0:04:07]} Nf6 {[%emt 0:01:41] [#]} 7. c4 $1 {[%emt 0:00:33]} Nbd7 {[%emt 0:00:25][%cal Bb8d7,Bd7f8,Bf8e6,Be6g5,Bg5e4][%mdl 32]} (7... Be7 8. Qb3) 8. cxd5 {[%emt 0:00:08]} exd5 {[%emt 0:01:24]} 9. Qb3 {[%emt 0:00:37]} Bxf3 {[%emt 0:07:01]} 10. Bxf3 {[%emt 0:03:20]} Qb6 {[%emt 0:00:48]} 11. Qe3+ {[%emt 0:09:23]} Be7 {[%emt 0:00:24]} 12. Nc3 {[%emt 0:01:57][%cal Ob2b4,Bb1c3,Bc3a4,Ba4c5,Bc5d3,Bd3f4][%mdl 32]} Nf8 {[%emt 0:00:58]} 13. Na4 {[%emt 0:15:23]} Qc7 {[%emt 0:01:47]} 14. Nc5 {[%emt 0:04:30]} b6 {[%emt 0:08:52]} 15. Nd3 {[%emt 0:00:19]} Ne6 {[%emt 0:00:21]} 16. Nf4 {[%emt 0:01:52]} Ng5 {[%emt 0:03:18]} 17. Bg2 {[%emt 0:02:06]} Nge4 {[%emt 0:02:57]} 18. g4 {[%emt 0:22:14]} (18. Bd2 $11) 18... h5 $15 {[%emt 0:14:06]} 19. f3 {[%emt 0:07:25]} Ng3 {[%emt 0:05:41]} 20. Re1 {[%emt 0:02:35]} O-O-O {[%emt 0:21:22]} (20... hxg4 $15 21. hxg4 O-O-O) 21. Qf2 {[%emt 0:00:19] [#]} Bd6 $1 {[%emt 0:05:00]} 22. Qxg3 {[%emt 0:03:51] Black must now prevent e4.} g5 {[%emt 0:00:33]} 23. e3 $1 {[%emt 0:03:41][%cal Oa2a4]} Rde8 {[%emt 0:03:06]} 24. Bd2 {[%emt 0:00:29][%cal Oa2a4]} hxg4 {[%emt 0:00:43]} (24... Reg8 25. Rac1 gxf4 26. exf4) 25. hxg4 {[%emt 0:00:55]} Reg8 {[%emt 0:03:48]} 26. Rac1 {[%emt 0:01:25][%cal Oc1c6] Threatens to win with Rxc6!} gxf4 {[%emt 0:00:20]} 27. exf4 {[%emt 0:00:11]} Nh5 {[%emt 0:00:15]} 28. Qf2 {[%emt 0:00:12]} (28. Qh4 $1 $15 Nxf4 29. Qf6) 28... Nxf4 $19 {[%emt 0:01:32]} 29. Rxc6 {[%emt 0:01:17]} Qxc6 {[%emt 0:00:10]} 30. Rc1 {[%emt 0:00:01] [#]} Qxc1+ {[%emt 0:02:30]} 31. Bxc1 {[%emt 0:00:21]} Kb8 $2 {[%emt 0:02:01]} (31... Nxg2 $19 32. Qc2+ Kb8) 32. Bxf4 $1 $11 {[%emt 0:01:55]} Bxf4 {[%emt 0:00:01]} 33. Qc2 {[%emt 0:00:33]} Re8 {[%emt 0:05:34]} ({Black should play} 33... Be3+ $11 34. Kf1 Rc8 (34... Bxd4 $2 {too greedy.} 35. Qd2 $18)) 34. Qf5 {[%emt 0:01:59]} (34. Kf2 $14 Be3+ 35. Kg3) 34... Bg3 $1 {[%emt 0:00:53] Weighted Error Value: White=0.18 (very precise) /Black=0.26 (precise) .  Loses game:     	White=1     	---        Missed win:     	---       	Black=1      Mistake:       	White=2     	Black=2      Inaccurate:     	White=2     	---        OK:         	White=10    	Black=11     Best:        	White=2     	Black=3      Strong:       	White=2     	Black=1} 1/2-1/2

[Event "Elegant Academy GM Aspirant-II"]
[Site "Dhaka"]
[Date "2024.02.21"]
[Round "1.5"]
[White "Panesar Vedant"]
[Black "Setyaki, Azarya Jodi"]
[Result "1/2-1/2"]
[ECO "D32"]
[WhiteElo "2452"]
[BlackElo "2400"]
[Annotator "RC"]
[PlyCount "58"]
[EventDate "2024.02.21"]
[EventType "tourn"]
[EventCountry "BAN"]
[SourceTitle "playchess.com"]
[Source "ChessBase"]
[SourceQuality "1"]
[TimeControl "5400+30"]

1. d4 {[%emt 0:00:30]} d5 {[%emt 0:00:28]} 2. Nf3 {[%emt 0:00:00]} c5 {[%emt 0:00:37]} 3. c4 {[%emt 0:00:04]} e6 {[%emt 0:00:43]} 4. cxd5 {[%emt 0:00:10]} exd5 {[%emt 0:00:05]} 5. Bg5 {[%emt 0:00:11]} Nf6 {[%emt 0:00:16]} 6. Nc3 {[%emt 0:00:10]} Be6 {[%emt 0:00:40]} 7. e3 {[%emt 0:00:08]} c4 {[%emt 0:00:09]} 8. Be2 {[%emt 0:00:08]} Bb4 {[%emt 0:00:19]} 9. O-O {[%emt 0:00:09]} Nbd7 {[%emt 0:01:02]} 10. Ne5 {[%emt 0:01:45]} O-O {[%emt 0:00:13]} 11. Nxd7 {[%emt 0:00:36]} Qxd7 {[%emt 0:00:05]} 12. Bxf6 {[%emt 0:00:04]} gxf6 {[%emt 0:00:06]} 13. Bf3 {[%emt 0:00:05]} Kg7 {[%emt 0:02:19]} 14. a4 {[%emt 0:00:14]} b6 {[%emt 0:01:08]} 15. g3 {[%emt 0:00:11]} a6 {[%emt 0:10:51]} 16. Qc2 {[%emt 0:05:46]} Rab8 {[%emt 0:12:36]} 17. Rfd1 {[%emt 0:06:58]} Bf5 {[%emt 0:29:18]} 18. Qc1 {[%emt 0:02:23]} Bxc3 {[%emt 0:03:05]} 19. bxc3 {[%emt 0:00:10]} Bd3 {[%emt 0:01:31]} 20. Qa3 {[%emt 0:04:32]} Qf5 {[%emt 0:07:17]} 21. Bg2 {[%emt 0:00:35]} b5 {[%emt 0:02:33]} 22. Rd2 {[%emt 0:07:15]} a5 {[%emt 0:04:06]} 23. axb5 {[%emt 0:15:00]} Rxb5 {[%emt 0:00:55]} 24. Bf1 {[%emt 0:00:00]} Be4 {[%emt 0:00:06]} 25. Bg2 {[%emt 0:00:01]} Bd3 {[%emt 0:00:07]} 26. Bf1 {[%emt 0:00:02]} Be4 {[%emt 0:00:05]} 27. Bg2 {[%emt 0:00:01]} Bd3 {[%emt 0:23:20]} 28. Bf1 {[%emt 0:57:22]} Be4 {[%emt 0:00:30]} 29. Bg2 {[%emt 0:00:30]} Rfb8 {[%emt 0:00:30]} 1/2-1/2

[Event "Elegant Academy GM Aspirant-II"]
[Site "Dhaka"]
[Date "2024.02.22"]
[Round "2.1"]
[White "Aradhya, Garg"]
[Black "Setyaki, Azarya Jodi"]
[Result "1-0"]
[ECO "B07"]
[WhiteElo "2390"]
[BlackElo "2400"]
[Annotator "TA"]
[PlyCount "73"]
[EventDate "2024.02.21"]
[EventType "tourn"]
[EventCountry "BAN"]
[SourceTitle "playchess.com"]
[Source "ChessBase"]
[SourceQuality "1"]
[TimeControl "5400+30"]

{[%evp 23,73,33,29,29,35,15,9,0,37,0,18,0,34,-10,47,40,60,43,52,4,6,0,0,0,33,38,65,53,52,55,68,60,49,60,52,66,56,54,67,62,116,118,122,88,312,310,522,530,552,558,708,688]} 1. d4 {[%emt 0:00:01]} Nf6 {[%emt 0:00:21]} 2. Nf3 {[%emt 0:00:05]} g6 {[%emt 0:00:06]} 3. g3 {[%emt 0:04:10]} Bg7 {[%emt 0:00:06]} 4. Bg2 {[%emt 0:00:03]} O-O {[%emt 0:00:09]} 5. O-O {[%emt 0:00:04]} d6 {[%emt 0:00:03]} 6. Nc3 {[%emt 0:00:05]} Bf5 {[%emt 0:08:55]} 7. Nh4 {[%emt 0:07:39]} Bc8 {[%emt 0:01:35]} 8. e4 {[%emt 0:00:36]} e5 {[%emt 0:00:59]} 9. Nf3 {[%emt 0:00:44]} exd4 {[%emt 0:02:41]} 10. Nxd4 {[%emt 0:00:05]} Re8 {[%emt 0:00:24]} 11. Re1 {[%emt 0:03:55]} Nbd7 {[%emt 0:00:42]} 12. h3 {[%emt 0:00:51]} Nc5 {[%emt 0:00:32]} 13. Rb1 {[%emt 0:07:07]} a5 {[%emt 0:08:01]} 14. b3 {[%emt 0:08:22]} h6 {[%emt 0:05:19]} 15. Ba3 {[%emt 0:00:49] The position is equal.} Nh7 {[%emt 0:01:52]} 16. h4 {[%emt 0:04:08] Prevents Ng5.} h5 {[%emt 0:03:16]} 17. Qd2 {[%emt 0:07:03]} Nf8 {[%emt 0:04:00]} 18. Nd5 {[%emt 0:06:52][%cal Od4f5]} Bd7 {[%emt 0:03:41]} (18... c6 $11 19. Nf4 a4) 19. c4 $14 {[%emt 0:04:35]} Bg4 {[%emt 0:13:42]} 20. Bb2 {[%emt 0:08:31]} c6 {[%emt 0:04:14]} 21. Nc3 {[%emt 0:02:38]} (21. Ne3 $14) 21... Qb6 {[%emt 0:00:41]} 22. Nc2 {[%emt 0:01:04]} Rad8 {[%emt 0:00:18]} 23. Ne3 {[%emt 0:02:16]} Be6 {[%emt 0:05:51]} 24. Na4 {[%emt 0:07:49]} Nxa4 {[%emt 0:07:05]} 25. Bxg7 {[%emt 0:00:06]} ({Don't play} 25. bxa4 Bxb2 26. Rxb2 Qc7 $11) 25... Kxg7 {[%emt 0:00:04]} 26. bxa4 {[%emt 0:00:05]} Qa7 {[%emt 0:00:54]} 27. Qb2+ {[%emt 0:02:17]} Kg8 {[%emt 0:00:17]} 28. Qxb7 {[%emt 0:00:04]} Qxb7 {[%emt 0:09:03]} 29. Rxb7 {[%emt 0:00:02]} Nd7 {[%emt 0:00:05]} 30. Ra7 {[%emt 0:03:23][%cal Oe1c1]} Ne5 {[%emt 0:04:11]} 31. Rc1 $1 {[%emt 0:03:25][%cal Of2f4]} (31. Rxa5 Ra8 32. Rxa8 Rxa8 $17) 31... Nd3 {[%emt 0:03:30]} ({Better is} 31... Ra8 $14 32. Rxa8 Rxa8) 32. Rc3 $16 {[%emt 0:00:47]} Nc5 {[%emt 0:01:04]} 33. e5 {[%emt 0:03:06][%cal Be4e5,Be5d6][%mdl 32]} Bd7 {[%emt 0:02:23] A mistake that costs the game.} (33... Ra8 $16 34. Rc7 (34. Bxc6 Rxa7 35. Bxe8 dxe5 $16) (34. Rxa8 Rxa8 35. exd6 Rd8 $16) 34... Rac8 35. exd6 Rxc7 36. dxc7 Bd7) 34. exd6 $18 {[%emt 0:00:30]} ({Weaker is} 34. Rxa5 Rxe5 35. Ra7 Ree8 $14) 34... Ra8 $2 {[%emt 0:00:38] [#]} (34... Kg7 35. Rxa5 Ne4 36. Bxe4 Rxe4) 35. Rxd7 $1 {[%emt 0:01:22] White is clearly winning.} Nxd7 {[%emt 0:00:05]} 36. Bxc6 {[%emt 0:00:01]} Ra7 {[%emt 0:00:06]} 37. c5 {[%emt 0:00:30] Weighted Error Value: White=0.11 (very precise) /Black=0.38.  Loses game:     	---       	Black=1      Mistake:       	White=1     	Black=3      Inaccurate:     	White=2     	Black=4      OK:         	White=9     	Black=5      Best:        	White=3     	---        Strong:       	White=1     	---        Brilliant:      	White=1     	---} 1-0

[Event "Elegant Academy GM Aspirant-II"]
[Site "Dhaka"]
[Date "2024.02.22"]
[Round "2.2"]
[White "Mayank Chakraborty"]
[Black "Panesar Vedant"]
[Result "1/2-1/2"]
[ECO "C47"]
[WhiteElo "2409"]
[BlackElo "2452"]
[Annotator "ChessBase"]
[PlyCount "45"]
[EventDate "2024.02.21"]
[EventType "tourn"]
[EventCountry "BAN"]
[SourceTitle "playchess.com"]
[Source "ChessBase"]
[SourceQuality "1"]
[TimeControl "5400+30"]

1. e4 {[%emt 0:00:01]} e5 {[%emt 0:00:06]} 2. Nf3 {[%emt 0:00:02]} Nc6 {[%emt 0:00:08]} 3. Nc3 {[%emt 0:00:03]} Nf6 {[%emt 0:00:12]} 4. d4 {[%emt 0:00:03]} exd4 {[%emt 0:00:35]} 5. Nxd4 {[%emt 0:00:02]} Bb4 {[%emt 0:00:29]} 6. Nxc6 {[%emt 0:00:02]} bxc6 {[%emt 0:00:10]} 7. Bd3 {[%emt 0:00:02]} d5 {[%emt 0:00:12]} 8. exd5 {[%emt 0:00:05]} O-O {[%emt 0:00:10]} 9. O-O {[%emt 0:00:03]} Bg4 {[%emt 0:00:21]} 10. f3 {[%emt 0:00:01]} Bh5 {[%emt 0:00:10]} 11. dxc6 {[%emt 0:00:04]} Qd4+ {[%emt 0:00:09]} 12. Kh1 {[%emt 0:00:03]} Bxc3 {[%emt 0:00:07]} 13. bxc3 {[%emt 0:00:04]} Qxc3 {[%emt 0:00:08]} 14. Rb1 {[%emt 0:00:03]} Bg6 {[%emt 0:00:13]} 15. Bb2 {[%emt 0:00:04]} Qxc6 {[%emt 0:00:08]} 16. Bxf6 {[%emt 0:00:04]} Qxf6 {[%emt 0:00:12]} 17. Bxg6 {[%emt 0:00:04]} hxg6 {[%emt 0:00:18]} 18. Qd7 {[%emt 0:00:05]} Qd8 {[%emt 0:01:03]} 19. Qd3 {[%emt 0:00:56]} Qf6 {[%emt 0:00:14]} 20. Qd7 {[%emt 0:00:04]} Qd8 {[%emt 0:00:03]} 21. Qd3 {[%emt 0:00:04]} Qf6 {[%emt 0:00:04]} 22. Qd7 {[%emt 0:00:04]} Qd8 {[%emt 0:00:12]} 23. Qd3 {[%emt 0:00:06]} 1/2-1/2

[Event "Elegant Academy GM Aspirant-II"]
[Site "Dhaka"]
[Date "2024.02.22"]
[Round "2.3"]
[White "Mohammad Fahad, Rahman"]
[Black "Sriram, Jha"]
[Result "1/2-1/2"]
[ECO "D94"]
[WhiteElo "2418"]
[BlackElo "2317"]
[Annotator "TA"]
[PlyCount "78"]
[EventDate "2024.02.21"]
[EventType "tourn"]
[EventCountry "BAN"]
[SourceTitle "playchess.com"]
[Source "ChessBase"]
[SourceQuality "1"]
[TimeControl "5400+30"]

{[%evp 17,78,15,23,24,25,31,35,20,25,22,33,-26,-7,-16,-27,-24,-8,-10,-9,-14,6,0,7,12,22,0,37,14,0,-12,0,0,0,-7,7,7,15,0,0,-24,0,-110,-101,-123,-130,-145,-98,-155,-147,-154,0,0,0,0,0,-117,0,-161,-147,-165,-175,-152,-153]} 1. d4 {[%emt 0:00:13]} d5 {[%emt 0:02:50]} 2. c4 {[%emt 0:00:15]} c6 {[%emt 0:00:34]} 3. Nc3 {[%emt 0:00:05]} Nf6 {[%emt 0:02:17]} 4. e3 {[%emt 0:01:34]} g6 {[%emt 0:01:28]} 5. Nf3 {[%emt 0:01:00]} Bg7 {[%emt 0:00:03]} 6. Be2 {[%emt 0:01:02]} O-O {[%emt 0:00:07]} 7. O-O {[%emt 0:00:13]} dxc4 {[%emt 0:02:06]} 8. Bxc4 {[%emt 0:00:21]} Bg4 {[%emt 0:00:04]} 9. Be2 {[%emt 0:00:49]} Nbd7 {[%emt 0:01:18]} 10. e4 {[%emt 0:00:13]} Bxf3 {[%emt 0:05:49]} 11. Bxf3 {[%emt 0:02:51]} e5 {[%emt 0:00:08]} 12. dxe5 {[%emt 0:10:52] White is slightly better.} Nxe5 {[%emt 0:00:17]} 13. Be2 {[%emt 0:00:05]} Qe7 {[%emt 0:08:39]} 14. h3 {[%emt 1:17:57]} ({White should play} 14. f4 $14 Rfd8 15. Qc2) 14... Ned7 $11 {[%emt 0:05:05][%cal Oa8d8]} 15. Re1 {[%emt 0:00:00]} Nc5 {[%emt 0:03:54]} 16. Bf1 {[%emt 0:00:00]} Rad8 {[%emt 0:18:56]} (16... Ncxe4 $6 17. Qf3 Qb4 18. a3 $16 (18. Rxe4 Nxe4 19. Nxe4 Qe1 $16) (18. Nxe4 Qxe1 19. Nxf6+ Kh8 $16)) 17. Qc2 {[%emt 0:00:00]} Ne6 {[%emt 0:06:42]} 18. e5 {[%emt 0:00:00]} Nd5 {[%emt 0:15:17]} 19. Nxd5 $1 {[%emt 0:00:00]} cxd5 {[%emt 0:04:42]} 20. Bd2 {[%emt 0:00:00]} Rc8 {[%emt 0:11:28]} 21. Qa4 {[%emt 0:00:00]} Qc7 {[%emt 0:01:19]} 22. Rac1 {[%emt 0:00:00]} Qb6 {[%emt 0:00:40]} 23. Bb4 {[%emt 0:00:00]} Rxc1 {[%emt 0:01:18]} 24. Rxc1 {[%emt 0:00:00]} Ra8 {[%emt 0:01:27]} 25. Re1 {[%emt 0:00:00]} Qd4 {[%emt 0:01:30]} 26. Qb3 {[%emt 0:00:00]} Qb6 {[%emt 0:01:46]} (26... Bxe5 27. Bc3 Qb6 28. Qxb6 (28. Rxe5 Qxb3 29. axb3 Rd8 $18) 28... axb6 29. Bxe5 $18 (29. Rxe5 d4 $18)) 27. Qc3 {[%emt 0:00:00]} Bf8 {[%emt 0:00:33]} 28. Ba5 {[%emt 0:00:00]} Qc6 {[%emt 0:00:07]} (28... d4 $5 29. Qd2 Bh6 $11) 29. Qe3 {[%emt 0:00:00] [#]} (29. Qxc6 $11 bxc6 30. Rc1) 29... Qa4 $1 $17 {[%emt 0:00:27][%csl LRa2,LRa5]} 30. Bd2 {[%emt 0:00:00]} Qxa2 {[%emt 0:00:11]} 31. b4 {[%emt 0:00:00]} Rc8 {[%emt 0:00:38]} (31... b6 $142 32. Qc3 d4) 32. Bd3 {[%emt 0:00:00]} ({White should try} 32. Rd1) 32... Qa3 {[%emt 0:02:24]} 33. Rb1 {[%emt 0:00:00] [#]} Nf4 $2 {[%emt 0:00:49] Prevents Qe2.} 34. Bf1 $11 {[%emt 0:00:00]} Qa2 {[%emt 0:00:35]} 35. Re1 {[%emt 0:00:00]} Ne6 {[%emt 0:00:06]} ({Better is} 35... Bh6 $11 36. Rd1 Rc2) 36. Bd3 $17 {[%emt 0:00:00]} Qa3 {[%emt 0:00:16]} 37. Rb1 {[%emt 0:11:30] [#]} Bh6 $1 {[%emt 0:03:10][%mdl 512] Prevents g3. Black is clearly better.} 38. Qxh6 {[%emt 0:00:30] Qe3 would now be deadly.} (38. Qe2 Bxd2) 38... Qxd3 39. Ra1 {[%emt 0:00:30]} Qd4 {[%emt 0:01:00] Weighted Error Value: White=0.15 (very precise) /Black=0.17 (very precise) .  Mistake:       	White=3     	Black=3      Inaccurate:     	---       	Black=1      OK:         	White=10    	Black=14     Best:        	White=2     	---        Strong:       	White=1     	Black=1} 1/2-1/2